[Event "November 21 Late 2023"]
[Site "https://www.chess.com"]
[Date "2023.11.21"]
[Round "10"]
[White "Zarnicki, Pablo"]
[Black "Musalov, Ruslan"]
[Result "1-0"]
[Board "54"]
[TimeControl "180+1"]
[WhiteFideId "100137"]
[BlackFideId "4141490"]
[WhiteElo "2468"]
[BlackElo "2268"]
[WhiteTeam "ARG"]
[BlackTeam "RUS"]
[WhiteClock "0:00:07"]
[BlackClock "0:00:07"]

1. e4 {[%clk 0:02:48]}  e5 {[%clk 0:02:59]} 2. Nc3 {[%clk 0:02:47]}  Nc6 {[%clk 0:02:56]} 3. Nf3 {[%clk 0:02:46]}  Nf6 {[%clk 0:02:56]} 4. a3 {[%clk 0:02:45]}  d6 {[%clk 0:02:50]} 5. Bc4 {[%clk 0:02:42]}  Be6 {[%clk 0:02:43]} 6. Bxe6 {[%clk 0:02:35]}  fxe6 {[%clk 0:02:44]} 7. d4 {[%clk 0:02:35]}  exd4 {[%clk 0:02:44]} 8. Nxd4 {[%clk 0:02:36]}  Qd7 {[%clk 0:02:41]} 9. O-O {[%clk 0:02:35]}  Be7 {[%clk 0:02:37]} 10. Re1 {[%clk 0:02:31]}  O-O {[%clk 0:02:32]} 11. Be3 {[%clk 0:02:31]}  Kh8 {[%clk 0:02:26]} 12. h3 {[%clk 0:02:29]}  Nxd4 {[%clk 0:02:20]} 13. Bxd4 {[%clk 0:02:29]}  e5 {[%clk 0:02:12]} 14. Be3 {[%clk 0:02:28]}  c6 {[%clk 0:02:12]} 15. Qd3 {[%clk 0:02:17]}  Qe6 {[%clk 0:02:11]} 16. Rad1 {[%clk 0:02:16]}  Nh5 {[%clk 0:02:09]} 17. Qe2 {[%clk 0:02:14]}  Nf4 {[%clk 0:02:09]} 18. Bxf4 {[%clk 0:02:15]}  Rxf4 {[%clk 0:02:09]} 19. g3 {[%clk 0:02:12]}  Rf6 {[%clk 0:02:05]} 20. Qg4 {[%clk 0:02:06]}  Qf7 {[%clk 0:02:05]} 21. Rd2 {[%clk 0:02:00]}  Rf8 {[%clk 0:02:03]} 22. Rf1 {[%clk 0:01:59]}  Qe8 {[%clk 0:01:56]} 23. Qd1 {[%clk 0:01:51]}  Qg6 {[%clk 0:01:50]} 24. Kg2 {[%clk 0:01:50]}  h5 {[%clk 0:01:46]} 25. Rd3 {[%clk 0:01:39]}  Bd8 {[%clk 0:01:40]} 26. f3 {[%clk 0:01:29]}  h4 {[%clk 0:01:35]} 27. g4 {[%clk 0:01:26]}  Re6 {[%clk 0:01:30]} 28. Ne2 {[%clk 0:01:21]}  Bg5 {[%clk 0:01:29]} 29. c4 {[%clk 0:01:20]}  Kh7 {[%clk 0:01:22]} 30. b4 {[%clk 0:01:15]}  Be7 {[%clk 0:01:19]} 31. a4 {[%clk 0:01:01]}  Ref6 {[%clk 0:01:11]} 32. b5 {[%clk 0:00:57]}  Qf7 {[%clk 0:01:00]} 33. Qc2 {[%clk 0:00:48]}  Bd8 {[%clk 0:00:51]} 34. c5 {[%clk 0:00:41]}  dxc5 {[%clk 0:00:43]} 35. Qxc5 {[%clk 0:00:42]}  Qa2 {[%clk 0:00:34]} 36. Qe3 {[%clk 0:00:16]}  Bb6 {[%clk 0:00:33]} 37. Qd2 {[%clk 0:00:16]}  Qxa4 {[%clk 0:00:30]} 38. bxc6 {[%clk 0:00:16]}  bxc6 {[%clk 0:00:29]} 39. Rd7 {[%clk 0:00:13]}  Qc4 {[%clk 0:00:25]} 40. Qd3 {[%clk 0:00:08]}  Qxd3 {[%clk 0:00:22]} 41. Rxd3 {[%clk 0:00:08]}  c5 {[%clk 0:00:22]} 42. Nc3 {[%clk 0:00:08]}  c4 {[%clk 0:00:22]} 43. Rdd1 {[%clk 0:00:07]}  Bd4 {[%clk 0:00:22]} 44. Nd5 {[%clk 0:00:07]}  Ra6 {[%clk 0:00:20]} 45. Rb1 {[%clk 0:00:06]}  Ra2+ {[%clk 0:00:20]} 46. Kh1 {[%clk 0:00:07]}  c3 {[%clk 0:00:20]} 47. Rb7 {[%clk 0:00:05]}  Rc8 {[%clk 0:00:17]} 48. Ne7 {[%clk 0:00:05]}  Rc6 {[%clk 0:00:11]} 49. Nf5 {[%clk 0:00:05]}  c2 {[%clk 0:00:10]} 50. Nxg7 {[%clk 0:00:04]}  c1=Q {[%clk 0:00:07]} 51. Nf5+ {[%clk 0:00:04]}  Kh8 {[%clk 0:00:05]} 52. Rb8+ {[%clk 0:00:04]}  Kh7 {[%clk 0:00:06]} 53. Rb7+ {[%clk 0:00:05]}  Kg6 {[%clk 0:00:06]} 54. Rg7+ {[%clk 0:00:06]}  Kf6 {[%clk 0:00:07]} 55. g5+ {[%clk 0:00:06]}  Ke6 {[%clk 0:00:07]} 56. Re7# {[%clk 0:00:07]} 1-0

[Event "November 21 Late 2023"]
[Site "https://www.chess.com"]
[Date "2023.11.21"]
[Round "10"]
[White "YouShallNotPass001"]
[Black "Erzhanov, Arman"]
[Result "0-1"]
[Board "57"]
[TimeControl "180+1"]
[BlackFideId "4138821"]
[WhiteElo "2450"]
[BlackElo "2171"]
[BlackTeam "KAZ"]
[WhiteClock "0:01:09"]
[BlackClock "0:02:08"]

1. Nf3 {[%clk 0:03:00]}  d6 {[%clk 0:02:58]} 2. e3 {[%clk 0:03:01]}  e5 {[%clk 0:02:58]} 3. Be2 {[%clk 0:03:02]}  e4 {[%clk 0:02:58]} 4. Nd4 {[%clk 0:03:02]}  c5 {[%clk 0:02:58]} 5. Nb3 {[%clk 0:03:02]}  Nf6 {[%clk 0:02:57]} 6. d4 {[%clk 0:02:59]}  cxd4 {[%clk 0:02:49]} 7. Nxd4 {[%clk 0:02:57]}  Be7 {[%clk 0:02:47]} 8. O-O {[%clk 0:02:58]}  O-O {[%clk 0:02:47]} 9. c4 {[%clk 0:02:59]}  Nc6 {[%clk 0:02:47]} 10. Nc3 {[%clk 0:02:59]}  Re8 {[%clk 0:02:42]} 11. b3 {[%clk 0:02:59]}  Qa5 {[%clk 0:02:39]} 12. Bb2 {[%clk 0:02:58]}  Qg5 {[%clk 0:02:40]} 13. Kh1 {[%clk 0:02:54]}  Ne5 {[%clk 0:02:38]} 14. Qc2 {[%clk 0:02:12]}  Qh4 {[%clk 0:02:33]} 15. g3 {[%clk 0:02:07]}  Qh3 {[%clk 0:02:33]} 16. Nxe4 {[%clk 0:02:01]}  Nfg4 {[%clk 0:02:15]} 17. Nf3 {[%clk 0:01:09]}  Nxf3 {[%clk 0:02:08]} 0-1

[Event "November 21 Late 2023"]
[Site "https://www.chess.com"]
[Date "2023.11.21"]
[Round "10"]
[White "D`Arruda, Ricardo D."]
[Black "Minko, Dmitry"]
[Result "1/2-1/2"]
[Board "58"]
[TimeControl "180+1"]
[WhiteFideId "100692"]
[BlackFideId "24188468"]
[WhiteElo "2534"]
[BlackElo "1992"]
[WhiteTeam "ARG"]
[BlackTeam "FID"]
[WhiteClock "0:00:14"]
[BlackClock "0:00:17"]

1. d4 {[%clk 0:02:50]}  d5 {[%clk 0:02:59]} 2. Nf3 {[%clk 0:02:49]}  Nf6 {[%clk 0:02:59]} 3. c4 {[%clk 0:02:49]}  e6 {[%clk 0:02:59]} 4. Nc3 {[%clk 0:02:48]}  Be7 {[%clk 0:02:58]} 5. e3 {[%clk 0:02:48]}  a6 {[%clk 0:02:56]} 6. cxd5 {[%clk 0:02:46]}  exd5 {[%clk 0:02:56]} 7. Bd3 {[%clk 0:02:46]}  O-O {[%clk 0:02:55]} 8. O-O {[%clk 0:02:45]}  c6 {[%clk 0:02:55]} 9. Rb1 {[%clk 0:02:43]}  Bg4 {[%clk 0:02:55]} 10. h3 {[%clk 0:02:41]}  Bh5 {[%clk 0:02:55]} 11. b4 {[%clk 0:02:40]}  Nbd7 {[%clk 0:02:54]} 12. a4 {[%clk 0:02:40]}  Nb6 {[%clk 0:02:49]} 13. b5 {[%clk 0:02:36]}  cxb5 {[%clk 0:02:49]} 14. axb5 {[%clk 0:02:37]}  a5 {[%clk 0:02:49]} 15. Ra1 {[%clk 0:02:29]}  Bb4 {[%clk 0:02:39]} 16. Qb3 {[%clk 0:02:25]}  Bg6 {[%clk 0:02:31]} 17. Bxg6 {[%clk 0:02:24]}  hxg6 {[%clk 0:02:31]} 18. Ba3 {[%clk 0:02:23]}  Bxa3 {[%clk 0:02:30]} 19. Rxa3 {[%clk 0:02:17]}  Nc4 {[%clk 0:02:31]} 20. Ra2 {[%clk 0:02:15]}  Rc8 {[%clk 0:02:30]} 21. Rc2 {[%clk 0:02:11]}  b6 {[%clk 0:02:26]} 22. Rfc1 {[%clk 0:02:11]}  a4 {[%clk 0:01:10]} 23. Qxa4 {[%clk 0:02:00]}  Nd6 {[%clk 0:01:01]} 24. Qb3 {[%clk 0:01:53]}  Rc4 {[%clk 0:01:00]} 25. Nxd5 {[%clk 0:01:43]}  Rxc2 {[%clk 0:00:57]} 26. Nxf6+ {[%clk 0:01:42]}  Qxf6 {[%clk 0:00:58]} 27. Rxc2 {[%clk 0:01:42]}  Qf5 {[%clk 0:00:58]} 28. Ne5 {[%clk 0:01:39]}  Ra8 {[%clk 0:00:55]} 29. Rc1 {[%clk 0:01:26]}  Ne4 {[%clk 0:00:55]} 30. f3 {[%clk 0:01:18]}  Ng3 {[%clk 0:00:55]} 31. Qc2 {[%clk 0:00:39]}  Qg5 {[%clk 0:00:50]} 32. Kh2 {[%clk 0:00:40]}  f6 {[%clk 0:00:45]} 33. Nxg6 {[%clk 0:00:29]}  Nf5 {[%clk 0:00:45]} 34. Qe4 {[%clk 0:00:23]}  Qg3+ {[%clk 0:00:28]} 35. Kh1 {[%clk 0:00:23]}  Qxg6 {[%clk 0:00:28]} 36. Qxa8+ {[%clk 0:00:22]}  Kh7 {[%clk 0:00:29]} 37. g4 {[%clk 0:00:20]}  Qh6 {[%clk 0:00:25]} 38. Kg2 {[%clk 0:00:19]}  Nxe3+ {[%clk 0:00:25]} 39. Kg3 {[%clk 0:00:18]}  Nf5+ {[%clk 0:00:21]} 40. gxf5 {[%clk 0:00:17]}  Qg5+ {[%clk 0:00:21]} 41. Kh2 {[%clk 0:00:17]}  Qxc1 {[%clk 0:00:22]} 42. Qe4 {[%clk 0:00:16]}  Qb2+ {[%clk 0:00:20]} 43. Kg3 {[%clk 0:00:15]}  Qxb5 {[%clk 0:00:21]} 44. d5 {[%clk 0:00:15]}  Qc5 {[%clk 0:00:20]} 45. Qe6 {[%clk 0:00:14]}  Qg1+ {[%clk 0:00:20]} 46. Kf4 {[%clk 0:00:14]}  Qd4+ {[%clk 0:00:20]} 47. Kg3 {[%clk 0:00:14]}  Qg1+ {[%clk 0:00:20]} 48. Kf4 {[%clk 0:00:14]}  Qd4+ {[%clk 0:00:18]} 49. Kg3 {[%clk 0:00:14]}  Qg1+ {[%clk 0:00:17]} 1/2-1/2

[Event "November 21 Late 2023"]
[Site "https://www.chess.com"]
[Date "2023.11.21"]
[Round "10"]
[White "VitaliyChayka"]
[Black "The_Straightforward_Rook"]
[Result "0-1"]
[Board "59"]
[TimeControl "180+1"]
[WhiteElo "2448"]
[BlackElo "2521"]
[WhiteClock "0:00:00"]
[BlackClock "0:00:20"]

1. d4 {[%clk 0:03:00]}  Nf6 {[%clk 0:02:59]} 2. Bf4 {[%clk 0:03:01]}  e6 {[%clk 0:02:59]} 3. e3 {[%clk 0:03:01]}  d5 {[%clk 0:02:59]} 4. Nf3 {[%clk 0:03:01]}  Bd6 {[%clk 0:03:00]} 5. Bg3 {[%clk 0:03:01]}  c5 {[%clk 0:03:01]} 6. c3 {[%clk 0:03:00]}  Qc7 {[%clk 0:03:01]} 7. Nbd2 {[%clk 0:02:53]}  Nbd7 {[%clk 0:03:01]} 8. c4 {[%clk 0:02:52]}  O-O {[%clk 0:02:56]} 9. Rc1 {[%clk 0:02:48]}  Bxg3 {[%clk 0:02:53]} 10. hxg3 {[%clk 0:02:47]}  b6 {[%clk 0:02:53]} 11. cxd5 {[%clk 0:02:44]}  Nxd5 {[%clk 0:02:51]} 12. Bd3 {[%clk 0:02:44]}  h6 {[%clk 0:02:47]} 13. g4 {[%clk 0:02:41]}  e5 {[%clk 0:02:32]} 14. g5 {[%clk 0:02:13]}  exd4 {[%clk 0:02:32]} 15. Nxd4 {[%clk 0:02:02]}  Nxe3 {[%clk 0:02:23]} 16. Qf3 {[%clk 0:01:52]}  Qe5 {[%clk 0:01:36]} 17. Qxe3 {[%clk 0:01:20]}  cxd4 {[%clk 0:01:36]} 18. Qxe5 {[%clk 0:01:17]}  Nxe5 {[%clk 0:01:37]} 19. Be4 {[%clk 0:01:18]}  Ba6 {[%clk 0:01:30]} 20. gxh6 {[%clk 0:01:14]}  Rae8 {[%clk 0:01:25]} 21. hxg7 {[%clk 0:01:10]}  Kxg7 {[%clk 0:01:20]} 22. Kd1 {[%clk 0:01:04]}  Nd3 {[%clk 0:01:07]} 23. Bxd3 {[%clk 0:01:01]}  Bxd3 {[%clk 0:01:08]} 24. Rc7 {[%clk 0:00:40]}  Be2+ {[%clk 0:01:08]} 25. Kc1 {[%clk 0:00:39]}  Rc8 {[%clk 0:01:08]} 26. Rxc8 {[%clk 0:00:35]}  Rxc8+ {[%clk 0:01:09]} 27. Kb1 {[%clk 0:00:35]}  Bd3+ {[%clk 0:01:07]} 28. Ka1 {[%clk 0:00:35]}  Rc2 {[%clk 0:01:02]} 29. Nf3 {[%clk 0:00:27]}  Rxf2 {[%clk 0:01:01]} 30. Rg1 {[%clk 0:00:27]}  Rf1+ {[%clk 0:00:57]} 31. Rxf1 {[%clk 0:00:26]}  Bxf1 {[%clk 0:00:58]} 32. g3 {[%clk 0:00:25]}  d3 {[%clk 0:00:58]} 33. Kb1 {[%clk 0:00:24]}  Be2 {[%clk 0:00:55]} 34. Nd2 {[%clk 0:00:21]}  Kf6 {[%clk 0:00:56]} 35. Kc1 {[%clk 0:00:20]}  Kf5 {[%clk 0:00:55]} 36. Nc4 {[%clk 0:00:17]}  f6 {[%clk 0:00:48]} 37. Kd2 {[%clk 0:00:14]}  Kg4 {[%clk 0:00:48]} 38. Nd6 {[%clk 0:00:11]}  f5 {[%clk 0:00:46]} 39. b4 {[%clk 0:00:11]}  Kg5 {[%clk 0:00:37]} 40. Nc8 {[%clk 0:00:10]}  Kg4 {[%clk 0:00:37]} 41. Nd6 {[%clk 0:00:10]}  Bf1 {[%clk 0:00:35]} 42. a3 {[%clk 0:00:09]}  a5 {[%clk 0:00:31]} 43. bxa5 {[%clk 0:00:09]}  bxa5 {[%clk 0:00:32]} 44. Ke3 {[%clk 0:00:09]}  a4 {[%clk 0:00:28]} 45. Kd2 {[%clk 0:00:09]}  Be2 {[%clk 0:00:28]} 46. Ke3 {[%clk 0:00:09]}  Kg5 {[%clk 0:00:26]} 47. Kd2 {[%clk 0:00:09]}  Kf6 {[%clk 0:00:26]} 48. Ke3 {[%clk 0:00:09]}  Ke5 {[%clk 0:00:26]} 49. Nc4+ {[%clk 0:00:09]}  Kd5 {[%clk 0:00:26]} 50. Nd2 {[%clk 0:00:10]}  Kc5 {[%clk 0:00:25]} 51. Kf4 {[%clk 0:00:10]}  Bg4 {[%clk 0:00:25]} 52. Ke3 {[%clk 0:00:10]}  Be2 {[%clk 0:00:26]} 53. Kf4 {[%clk 0:00:10]}  Kd4 {[%clk 0:00:25]} 54. Kxf5 {[%clk 0:00:09]}  Kc3 {[%clk 0:00:26]} 55. Ne4+ {[%clk 0:00:09]}  Kb3 {[%clk 0:00:25]} 56. g4 {[%clk 0:00:07]}  Kxa3 {[%clk 0:00:24]} 57. g5 {[%clk 0:00:07]}  Bh5 {[%clk 0:00:24]} 58. Kf4 {[%clk 0:00:03]}  Kb2 {[%clk 0:00:22]} 59. Ke3 {[%clk 0:00:00]}  Bg6 {[%clk 0:00:20]} 0-1

[Event "November 21 Late 2023"]
[Site "https://www.chess.com"]
[Date "2023.11.21"]
[Round "10"]
[White "Osmak, Yuliia"]
[Black "Rodriguez Dominguez, Melissa"]
[Result "1-0"]
[Board "63"]
[TimeControl "180+1"]
[WhiteFideId "14101602"]
[BlackFideId "3517560"]
[WhiteElo "2303"]
[BlackElo "2012"]
[WhiteTeam "UKR"]
[BlackTeam "CUB"]
[WhiteClock "0:00:14"]
[BlackClock "0:00:06"]

1. e4 {[%clk 0:03:00]}  c5 {[%clk 0:02:58]} 2. Nf3 {[%clk 0:03:00]}  e6 {[%clk 0:02:58]} 3. d4 {[%clk 0:02:59]}  cxd4 {[%clk 0:02:59]} 4. Nxd4 {[%clk 0:03:00]}  Nc6 {[%clk 0:03:00]} 5. Nc3 {[%clk 0:02:59]}  Qc7 {[%clk 0:03:00]} 6. g3 {[%clk 0:02:58]}  a6 {[%clk 0:02:55]} 7. Bg2 {[%clk 0:02:57]}  b5 {[%clk 0:02:55]} 8. O-O {[%clk 0:02:53]}  Bb7 {[%clk 0:02:55]} 9. Re1 {[%clk 0:02:50]}  Rc8 {[%clk 0:02:51]} 10. a4 {[%clk 0:02:48]}  b4 {[%clk 0:02:47]} 11. Nd5 {[%clk 0:02:47]}  Qa5 {[%clk 0:02:04]} 12. Nb3 {[%clk 0:02:39]}  Qd8 {[%clk 0:02:00]} 13. Be3 {[%clk 0:02:29]}  exd5 {[%clk 0:01:41]} 14. exd5 {[%clk 0:02:30]}  Nce7 {[%clk 0:01:42]} 15. d6 {[%clk 0:02:24]}  Bxg2 {[%clk 0:01:38]} 16. Kxg2 {[%clk 0:02:24]}  f6 {[%clk 0:01:15]} 17. Bc5 {[%clk 0:02:15]}  Kf7 {[%clk 0:01:11]} 18. Bxb4 {[%clk 0:02:05]}  Nc6 {[%clk 0:01:03]} 19. Qd5+ {[%clk 0:02:03]}  Kg6 {[%clk 0:01:02]} 20. Bc5 {[%clk 0:01:51]}  h5 {[%clk 0:00:53]} 21. Qd3+ {[%clk 0:01:48]}  Kh6 {[%clk 0:00:47]} 22. Be3+ {[%clk 0:01:42]}  g5 {[%clk 0:00:48]} 23. h4 {[%clk 0:01:41]}  Ne5 {[%clk 0:00:31]} 24. Qd5 {[%clk 0:01:34]}  Ng6 {[%clk 0:00:15]} 25. Nd4 {[%clk 0:01:30]}  Bg7 {[%clk 0:00:08]} 26. Nf5+ {[%clk 0:01:14]}  Kh7 {[%clk 0:00:08]} 27. Qf7 {[%clk 0:01:09]}  Qf8 {[%clk 0:00:08]} 28. Qxd7 {[%clk 0:01:09]}  Rd8 {[%clk 0:00:07]} 29. Qc7 {[%clk 0:01:05]}  Rc8 {[%clk 0:00:07]} 30. Qa7 {[%clk 0:00:56]}  Rxc2 {[%clk 0:00:07]} 31. hxg5 {[%clk 0:00:40]}  fxg5 {[%clk 0:00:07]} 32. Bd4 {[%clk 0:00:36]}  Nf6 {[%clk 0:00:07]} 33. Re6 {[%clk 0:00:22]}  Nf4+ {[%clk 0:00:04]} 34. gxf4 {[%clk 0:00:21]}  gxf4 {[%clk 0:00:05]} 35. Bxf6 {[%clk 0:00:19]}  Rg8 {[%clk 0:00:05]} 36. Nxg7 {[%clk 0:00:18]}  Rxg7+ {[%clk 0:00:05]} 37. Qxg7+ {[%clk 0:00:17]}  Qxg7+ {[%clk 0:00:06]} 38. Bxg7 {[%clk 0:00:18]}  Kxg7 {[%clk 0:00:06]} 39. Rd1 {[%clk 0:00:16]}  Kf7 {[%clk 0:00:06]} 40. Re4 {[%clk 0:00:16]}  f3+ {[%clk 0:00:06]} 41. Kxf3 {[%clk 0:00:16]}  Rxb2 {[%clk 0:00:07]} 42. d7 {[%clk 0:00:15]}  Rb3+ {[%clk 0:00:08]} 43. Kg2 {[%clk 0:00:15]}  Rb8 {[%clk 0:00:08]} 44. d8=Q {[%clk 0:00:15]}  Rxd8 {[%clk 0:00:06]} 45. Rxd8 {[%clk 0:00:14]} 1-0

[Event "November 21 Late 2023"]
[Site "https://www.chess.com"]
[Date "2023.11.21"]
[Round "10"]
[White "Pourkashiyan, Atousa"]
[Black "Silvestre, Christian"]
[Result "0-1"]
[Board "64"]
[TimeControl "180+1"]
[WhiteFideId "12502014"]
[BlackFideId "30956269"]
[WhiteElo "2221"]
[BlackElo "2350"]
[WhiteTeam "USA"]
[BlackTeam "USA"]
[WhiteClock "0:00:00"]
[BlackClock "0:00:06"]

1. e4 {[%clk 0:02:55]}  c5 {[%clk 0:02:58]} 2. Nf3 {[%clk 0:02:55]}  d6 {[%clk 0:02:58]} 3. d4 {[%clk 0:02:55]}  cxd4 {[%clk 0:02:59]} 4. Nxd4 {[%clk 0:02:55]}  Nf6 {[%clk 0:02:59]} 5. Nc3 {[%clk 0:02:56]}  g6 {[%clk 0:02:59]} 6. Bc4 {[%clk 0:02:56]}  a6 {[%clk 0:03:00]} 7. O-O {[%clk 0:02:56]}  b5 {[%clk 0:02:59]} 8. Bb3 {[%clk 0:02:51]}  Bb7 {[%clk 0:02:57]} 9. Nf3 {[%clk 0:02:29]}  Nbd7 {[%clk 0:02:50]} 10. Ng5 {[%clk 0:02:17]}  e6 {[%clk 0:02:47]} 11. f4 {[%clk 0:02:12]}  Nc5 {[%clk 0:02:39]} 12. f5 {[%clk 0:02:09]}  Nxb3 {[%clk 0:02:33]} 13. axb3 {[%clk 0:02:09]}  gxf5 {[%clk 0:02:30]} 14. exf5 {[%clk 0:02:07]}  e5 {[%clk 0:02:30]} 15. Qe2 {[%clk 0:01:36]}  Rg8 {[%clk 0:02:28]} 16. Nge4 {[%clk 0:01:35]}  Nxe4 {[%clk 0:02:13]} 17. Nxe4 {[%clk 0:01:36]}  Qh4 {[%clk 0:02:06]} 18. Re1 {[%clk 0:01:20]}  Be7 {[%clk 0:01:45]} 19. g3 {[%clk 0:01:08]}  Rg4 {[%clk 0:01:34]} 20. f6 {[%clk 0:00:56]}  Bxe4 {[%clk 0:01:09]} 21. Bf4 {[%clk 0:00:44]}  Bf5 {[%clk 0:00:47]} 22. Bxe5 {[%clk 0:00:36]}  dxe5 {[%clk 0:00:44]} 23. Qxe5 {[%clk 0:00:36]}  Be6 {[%clk 0:00:39]} 24. fxe7 {[%clk 0:00:35]}  Qxe7 {[%clk 0:00:36]} 25. Qh8+ {[%clk 0:00:27]}  Qf8 {[%clk 0:00:35]} 26. Qxh7 {[%clk 0:00:15]}  Qc5+ {[%clk 0:00:33]} 27. Kg2 {[%clk 0:00:08]}  Qd5+ {[%clk 0:00:29]} 28. Kg1 {[%clk 0:00:05]}  Qd4+ {[%clk 0:00:29]} 29. Kg2 {[%clk 0:00:05]}  O-O-O {[%clk 0:00:22]} 30. Rad1 {[%clk 0:00:03]}  Qxd1 {[%clk 0:00:11]} 31. Rxd1 {[%clk 0:00:03]}  Rxd1 {[%clk 0:00:11]} 32. Qh8+ {[%clk 0:00:04]}  Rd8 {[%clk 0:00:07]} 33. Qc3+ {[%clk 0:00:04]}  Kb7 {[%clk 0:00:07]} 34. Qf3+ {[%clk 0:00:04]}  Bd5 {[%clk 0:00:07]} 35. Qxd5+ {[%clk 0:00:00]}  Rxd5 {[%clk 0:00:06]} 0-1

[Event "November 21 Late 2023"]
[Site "https://www.chess.com"]
[Date "2023.11.21"]
[Round "10"]
[White "Koksal, Ege"]
[Black "Todorovic, Bojan"]
[Result "1-0"]
[Board "65"]
[TimeControl "180+1"]
[WhiteFideId "6317626"]
[BlackFideId "917087"]
[WhiteElo "2230"]
[BlackElo "2266"]
[WhiteTeam "TUR"]
[BlackTeam "SRB"]
[WhiteClock "0:00:26"]
[BlackClock "0:00:00"]

1. c4 {[%clk 0:03:00]}  g6 {[%clk 0:02:58]} 2. Nc3 {[%clk 0:03:01]}  Bg7 {[%clk 0:02:58]} 3. d4 {[%clk 0:03:01]}  Nf6 {[%clk 0:02:56]} 4. e4 {[%clk 0:03:01]}  O-O {[%clk 0:02:55]} 5. Nf3 {[%clk 0:03:02]}  d6 {[%clk 0:02:54]} 6. Be2 {[%clk 0:03:02]}  c5 {[%clk 0:02:53]} 7. O-O {[%clk 0:02:59]}  Nc6 {[%clk 0:02:53]} 8. d5 {[%clk 0:02:57]}  Na5 {[%clk 0:02:52]} 9. h3 {[%clk 0:02:51]}  e5 {[%clk 0:02:50]} 10. Bg5 {[%clk 0:02:37]}  h6 {[%clk 0:02:49]} 11. Be3 {[%clk 0:02:38]}  Kh7 {[%clk 0:02:40]} 12. Nd2 {[%clk 0:02:38]}  Nd7 {[%clk 0:02:30]} 13. a3 {[%clk 0:02:23]}  b6 {[%clk 0:02:29]} 14. b4 {[%clk 0:02:22]}  Nb7 {[%clk 0:02:29]} 15. Rc1 {[%clk 0:02:12]}  a6 {[%clk 0:02:16]} 16. Kh1 {[%clk 0:02:03]}  Qe7 {[%clk 0:02:15]} 17. Qc2 {[%clk 0:01:57]}  Nf6 {[%clk 0:01:55]} 18. Rb1 {[%clk 0:01:51]}  Qc7 {[%clk 0:01:41]} 19. Nb3 {[%clk 0:01:46]}  Bd7 {[%clk 0:01:26]} 20. bxc5 {[%clk 0:01:46]}  Nxc5 {[%clk 0:01:24]} 21. Nxc5 {[%clk 0:01:47]}  bxc5 {[%clk 0:01:22]} 22. Rb3 {[%clk 0:01:43]}  Rfb8 {[%clk 0:01:10]} 23. Rfb1 {[%clk 0:01:42]}  Rxb3 {[%clk 0:01:08]} 24. Qxb3 {[%clk 0:01:43]}  Ne8 {[%clk 0:01:02]} 25. Qb7 {[%clk 0:01:30]}  Ra7 {[%clk 0:00:24]} 26. Qxc7 {[%clk 0:01:27]}  Nxc7 {[%clk 0:00:23]} 27. Rb6 {[%clk 0:01:23]}  Bf8 {[%clk 0:00:23]} 28. Bd1 {[%clk 0:01:06]}  Be7 {[%clk 0:00:21]} 29. Ba4 {[%clk 0:01:06]}  Bxa4 {[%clk 0:00:19]} 30. Nxa4 {[%clk 0:01:07]}  Ne8 {[%clk 0:00:17]} 31. Rb8 {[%clk 0:01:02]}  Nf6 {[%clk 0:00:16]} 32. f3 {[%clk 0:01:01]}  Nh5 {[%clk 0:00:14]} 33. g4 {[%clk 0:01:02]}  Nf4 {[%clk 0:00:13]} 34. Bxf4 {[%clk 0:01:02]}  exf4 {[%clk 0:00:13]} 35. Nb6 {[%clk 0:01:01]}  Bf6 {[%clk 0:00:11]} 36. Nc8 {[%clk 0:00:57]}  Rd7 {[%clk 0:00:10]} 37. Rb6 {[%clk 0:00:54]}  Be5 {[%clk 0:00:10]} 38. Rc6 {[%clk 0:00:51]}  Rb7 {[%clk 0:00:09]} 39. Nb6 {[%clk 0:00:51]}  a5 {[%clk 0:00:08]} 40. a4 {[%clk 0:00:50]}  h5 {[%clk 0:00:08]} 41. Kg2 {[%clk 0:00:50]}  hxg4 {[%clk 0:00:08]} 42. hxg4 {[%clk 0:00:51]}  Kh6 {[%clk 0:00:08]} 43. Nc8 {[%clk 0:00:36]}  Rb2+ {[%clk 0:00:07]} 44. Kf1 {[%clk 0:00:36]}  Rb3 {[%clk 0:00:07]} 45. Ke2 {[%clk 0:00:28]}  Rb2+ {[%clk 0:00:07]} 46. Kd1 {[%clk 0:00:27]}  Rb3 {[%clk 0:00:08]} 47. Nxd6 {[%clk 0:00:28]}  Rxf3 {[%clk 0:00:08]} 48. Nxf7+ {[%clk 0:00:28]}  Kg7 {[%clk 0:00:04]} 49. Nxe5 {[%clk 0:00:29]}  Re3 {[%clk 0:00:03]} 50. d6 {[%clk 0:00:28]}  Rxe4 {[%clk 0:00:03]} 51. d7 {[%clk 0:00:28]}  Rd4+ {[%clk 0:00:01]} 52. Ke2 {[%clk 0:00:28]}  g5 {[%clk 0:00:00]} 53. Rc8 {[%clk 0:00:26]} 1-0

[Event "November 21 Late 2023"]
[Site "https://www.chess.com"]
[Date "2023.11.21"]
[Round "10"]
[White "Sanchez Alvares, Kelvin Antonio"]
[Black "Figorito, Nick"]
[Result "1-0"]
[Board "67"]
[TimeControl "180+1"]
[WhiteFideId "3906680"]
[BlackFideId "30923689"]
[WhiteElo "2217"]
[BlackElo "2376"]
[WhiteTeam "VEN"]
[BlackTeam "USA"]
[WhiteClock "0:01:23"]
[BlackClock "0:00:24"]

1. e4 {[%clk 0:02:54]}  e6 {[%clk 0:03:00]} 2. d4 {[%clk 0:02:53]}  d5 {[%clk 0:03:01]} 3. exd5 {[%clk 0:02:52]}  exd5 {[%clk 0:03:01]} 4. Nf3 {[%clk 0:02:52]}  Bd6 {[%clk 0:03:01]} 5. Bd3 {[%clk 0:02:52]}  Ne7 {[%clk 0:03:01]} 6. h3 {[%clk 0:02:51]}  O-O {[%clk 0:03:00]} 7. O-O {[%clk 0:02:52]}  Bf5 {[%clk 0:03:01]} 8. c3 {[%clk 0:02:51]}  c6 {[%clk 0:03:01]} 9. Be3 {[%clk 0:02:50]}  Nd7 {[%clk 0:03:00]} 10. Re1 {[%clk 0:02:50]}  Qc7 {[%clk 0:02:57]} 11. Qc2 {[%clk 0:02:48]}  Bxd3 {[%clk 0:02:57]} 12. Qxd3 {[%clk 0:02:49]}  h6 {[%clk 0:02:50]} 13. Nbd2 {[%clk 0:02:48]}  Rfe8 {[%clk 0:02:50]} 14. a4 {[%clk 0:02:46]}  a5 {[%clk 0:02:49]} 15. Nh4 {[%clk 0:02:45]}  Nf6 {[%clk 0:02:48]} 16. Nf5 {[%clk 0:02:40]}  Nxf5 {[%clk 0:02:48]} 17. Qxf5 {[%clk 0:02:41]}  Qd7 {[%clk 0:02:47]} 18. Qf3 {[%clk 0:02:41]}  Ne4 {[%clk 0:02:43]} 19. Nf1 {[%clk 0:02:35]}  Re6 {[%clk 0:02:39]} 20. g4 {[%clk 0:02:31]}  Rae8 {[%clk 0:02:36]} 21. Qg2 {[%clk 0:02:29]}  Bc7 {[%clk 0:02:35]} 22. f3 {[%clk 0:02:28]}  Nd6 {[%clk 0:02:28]} 23. Bf2 {[%clk 0:02:26]}  Nc4 {[%clk 0:02:25]} 24. b3 {[%clk 0:02:20]}  Nb6 {[%clk 0:02:10]} 25. Rxe6 {[%clk 0:02:17]}  Rxe6 {[%clk 0:02:10]} 26. Ne3 {[%clk 0:02:12]}  Nc8 {[%clk 0:02:03]} 27. Re1 {[%clk 0:02:10]}  Qe8 {[%clk 0:02:02]} 28. Qf1 {[%clk 0:02:09]}  Nd6 {[%clk 0:01:55]} 29. Ng2 {[%clk 0:02:08]}  Rxe1 {[%clk 0:01:54]} 30. Qxe1 {[%clk 0:02:08]}  Qxe1+ {[%clk 0:01:55]} 31. Nxe1 {[%clk 0:02:05]}  f5 {[%clk 0:01:48]} 32. Bg3 {[%clk 0:02:03]}  fxg4 {[%clk 0:01:47]} 33. hxg4 {[%clk 0:02:01]}  Ne8 {[%clk 0:01:45]} 34. Bf2 {[%clk 0:01:53]}  Kf7 {[%clk 0:01:41]} 35. Nd3 {[%clk 0:01:52]}  b6 {[%clk 0:01:35]} 36. Kf1 {[%clk 0:01:52]}  g6 {[%clk 0:01:35]} 37. b4 {[%clk 0:01:43]}  axb4 {[%clk 0:01:34]} 38. cxb4 {[%clk 0:01:43]}  h5 {[%clk 0:01:34]} 39. gxh5 {[%clk 0:01:42]}  gxh5 {[%clk 0:01:35]} 40. Kg2 {[%clk 0:01:36]}  Ng7 {[%clk 0:01:31]} 41. Ne5+ {[%clk 0:01:29]}  Bxe5 {[%clk 0:01:31]} 42. dxe5 {[%clk 0:01:30]}  b5 {[%clk 0:01:07]} 43. a5 {[%clk 0:01:30]}  Ne6 {[%clk 0:01:04]} 44. Bb6 {[%clk 0:01:30]}  Nf4+ {[%clk 0:00:59]} 45. Kf1 {[%clk 0:01:24]}  h4 {[%clk 0:00:48]} 46. a6 {[%clk 0:01:23]}  h3 {[%clk 0:00:24]} 47. Kg1 {[%clk 0:01:23]} 1-0